{"text_format":"1","workbook":"xlsx","n_sheets":3,"sheets":["Pavouk","Pořadí","Tabulky"],"not_rendered":{"charts":0,"images":1,"macros":1,"external_links":0,"defined_names":4,"comments":0,"pivot_tables":0},"unopened":[],"bounds":{"document_bytes":16777216,"sheet_cells":100000,"rows_first":2000,"rows_last":500,"rows_between":2000,"halvings":0,"cell_chars":16384,"cell_head_chars":4096},"cells_cut":0,"cells_raw":0,"read":"whole","date_system":"1900"}

{"sheet":"Pavouk","index":0,"n_rows":32,"n_cols":4,"rows_kept":32,"cut":false,"hidden":false,"merged":[]}
[null,"FINÁLOVÝ PAVOUK"]
[]
[]
[null,"Hampl Richard"]
[]
[null,null,"Hampl Richard"]
[null,null,"4-2"]
[null,"Muller Kryštof"]
[]
[null,null,null,"Hampl Richard"]
[null,null,null,"4-0"]
[null,"Šimánek Albert"]
[]
[null,null,"Alturban Karel"]
[null,null,"4-0"]
[null,"Alturban Karel"]
[]
[null,null,null,"Hampl Richard"]
[null,null,null,"4-1"]
[null,"Čáp Roman"]
[]
[null,null,"Blažek Matěj"]
[null,null,"4-0"]
[null,"Blažek Matěj"]
[]
[null,null,null,"Horáček Sebastian"]
[null,null,null,"4-2"]
[null,"Skalický Jan"]
[]
[null,null,"Horáček Sebastian"]
[null,null,"4-0"]
[null,"Horáček Sebastian"]

{"sheet":"Pořadí","index":1,"n_rows":60,"n_cols":6,"rows_kept":60,"cut":false,"hidden":false,"merged":[]}
["Pořadí Chlapci L-l 25"]
[]
[]
[]
[]
[]
[]
[]
[]
[]
[]
[]
[]
[]
[]
[]
[]
[]
[]
[]
[]
["Pořadí","Příjmení","1. turnaj","2. turnaj","3. turnaj","Celkem"]
["1.","Hampl Richard",300,null,null,{"$f":"SUM(C23:E23)","v":300}]
["2.","Horáček Sebastian",250,null,null,{"$f":"SUM(C24:E24)","v":250}]
["3.-4.","Blažek Matěj",200,null,null,{"$f":"SUM(C25:E25)","v":200}]
[null,"Alturban Karel",200,null,null,{"$f":"SUM(C26:E26)","v":200}]
["5.-8.","Skalický Jan",100,null,null,{"$f":"SUM(C27:E27)","v":100}]
[null,"Müller Kryštof",100,null,null,{"$f":"SUM(C28:E28)","v":100}]
[null,"Šimánek Albert",100,null,null,{"$f":"SUM(C29:E29)","v":100}]
[null,"Čáp Roman",100,null,null,{"$f":"SUM(C30:E30)","v":100}]
["9.-12.","Shazali Amin",20,null,null,{"$f":"SUM(C31:E31)","v":20}]
[null,"Bernas Berg",20,null,null,{"$f":"SUM(C32:E32)","v":20}]
[null,"Kocánek Adam",20,null,null,{"$f":"SUM(C33:E33)","v":20}]
[null,"Guerra Feijó Lukáš",20,null,null,{"$f":"SUM(C34:E34)","v":20}]
["13.-16.","Kroupa Maxmilian",10,null,null,{"$f":"SUM(C35:E35)","v":10}]
[null,"Korsawe Max Leopold",10,null,null,{"$f":"SUM(C36:E36)","v":10}]
[null,"Jiřička Vincent",10,null,null,{"$f":"SUM(C37:E37)","v":10}]
[null,"Píštěk David",10,null,null,{"$f":"SUM(C38:E38)","v":10}]
["17.-18.","Houdek Sebastian",5,null,null,{"$f":"SUM(C39:E39)","v":5}]
["18.-19.","Dvořák Jiří",5,null,null,{"$f":"SUM(C40:E40)","v":5}]
[null,null,null,null,null,{"$f":"SUM(C41:E41)","v":0}]
[null,null,null,null,null,{"$f":"SUM(C42:E42)","v":0}]
[null,null,null,null,null,{"$f":"SUM(C43:E43)","v":0}]
[null,null,null,null,null,{"$f":"SUM(C44:E44)","v":0}]
[null,null,null,null,null,{"$f":"SUM(C45:E45)","v":0}]
[null,null,null,null,null,{"$f":"SUM(C46:E46)","v":0}]
[null,null,null,null,null,{"$f":"SUM(C47:E47)","v":0}]
[null,null,null,null,null,{"$f":"SUM(C48:E48)","v":0}]
[null,null,null,null,null,{"$f":"SUM(C49:E49)","v":0}]
[null,null,null,null,null,{"$f":"SUM(C50:E50)","v":0}]
[null,null,null,null,null,{"$f":"SUM(C51:E51)","v":0}]
[null,null,null,null,null,{"$f":"SUM(C52:E52)","v":0}]
[null,null,null,null,null,{"$f":"SUM(C53:E53)","v":0}]
[null,null,null,null,null,{"$f":"SUM(C54:E54)","v":0}]
[null,null,null,null,null,{"$f":"SUM(C55:E55)","v":0}]
[null,null,null,null,null,{"$f":"SUM(C56:E56)","v":0}]
[null,null,null,null,null,{"$f":"SUM(C57:E57)","v":0}]
[null,null,null,null,null,{"$f":"SUM(C58:E58)","v":0}]
[null,null,null,null,null,{"$f":"SUM(C59:E59)","v":0}]
[null,null,null,null,null,{"$f":"SUM(C60:E60)","v":0}]

{"sheet":"Tabulky","index":2,"n_rows":68,"n_cols":19,"rows_kept":68,"cut":false,"hidden":false,"merged":[]}
[]
["Skupina A - kurt ",null,"Hampl Richard","Kocánek Adam","Blažek Matěj","Kroupa Maxmilian","Pořadí","Počet vítězství"]
["A1","Hampl Richard",null,"4-2","4-0","4-1","1.","3"]
["A2","Kocánek Adam","2-4",null,"0-4","4-3","3.","1"]
["A3","Blažek Matěj","0-4","4-0",null,"4-0","2.","2"]
["A4","Kroupa Maxmilian","1-4","3-4","0-4",null,"4.","0"]
[]
["Skupina B -  kurt ",null,"Müller Kryštof","Horáček Sebastian","Shazali Amin","Korsawe Max Leopold","Pořadí","Počet vítězství"]
["B1","Müller Kryštof",null,"3-4","4-3","4-0","2.","2"]
["B2","Horáček Sebastian","4-3",null,"4-0","4-1","1.","3"]
["B3","Shazali Amin","3-4","0-4",null,"4-2","3.","1"]
["B4","Korsawe Max Leopold","0-4","1-4","2-4",null,"4.","0"]
[]
["Skupina C - kurt ",null,"Šimánek Albert","Dvořák Jiří","Bernas Berg","Čáp Roman","Píštěk David","Pořadí","Počet vítězství"]
["C1","Šimánek Albert",null,"4-0","4-1","0-4","4-0","2.","3"]
["C2","Dvořák Jiří","0-4",null,"2-4","1.4","4-2","5.","1"]
["C3","Bernas Berg","1-4","4-2",null,"3-4","2-4","3.","1"]
["C4","Čáp Roman","4-0","4-1","4-3",null,"4-2","1.","4"]
["C5","Píštěk David","0-4","2-4","4-2","2-4",null,"4.","1"]
[]
["Skupina D - kurt ",null,"Alturban Karel","Houdek Sebastian","Jiřička Vincent","Skalický Jan","Guerra Feijó Lukáš","Pořadí","Počet vítězství"]
["D1","Alturban Karel",null,"4-0","4-0","4-0","4-0","1.","4"]
["D2","Houdek Sebastian","0-4",null,"0-4","1-4","0-4","5.","0"]
["D3","Jiřička Vincent","0-4","4-0",null,"0-4","2-4","4.","1"]
["D4","Skalický Jan","0-4","4-1","4-0",null,"4-0","2.","3"]
["D5","Guerra Feijó Lukáš","0-4","4-0","4-2","0-4",null,"3.","2"]
[]
["Skupina E - kurt",null,0,0,0,0,0,"Pořadí","Počet vítězství"]
["E1",0,null,0,0,0,0]
["E2",0,null,null,0,0,0]
["E3",0,null,null,null,0,0]
["E4",0,null,null,null,null,0]
["E5",0]
[]
["Skupina F - kurt",null,0,0,0,0,0,"Pořadí","Počet vítězství"]
["F1",0,null,0,0,0,0]
["F2",0,null,null,0,0,0]
["F3",0,null,null,null,0,0]
["F4",0,null,null,null,null,0]
["F5",0]
[]
["Skupina G - kurt ",null,0,0,0,0,0,"Pořadí","Počet vítězství"]
["G1",0,null,0,0,0,0]
["G2",0,null,null,0,0,0]
["G3",0,null,null,null,0,0]
["G4",0,null,null,null,null,0]
["G5",0]
[]
["Skupina H - kurt ",null,0,0,0,0,0,"Pořadí","Počet vítězství"]
["H1",0,null,0,0,0,0]
["H2",0,null,null,0,0,0]
["H3",0,null,null,null,0,0]
["H4",0,null,null,null,null,0]
["H5",0]
[]
["Skupina I - kurt ",null,0,0,0,0,0,"Pořadí","Počet vítězství"]
["I1",0,null,0,0,0,0]
["I2",0,null,null,0,0,0]
["I3",0,null,null,null,0,0]
["I4",0,null,null,null,null,0]
["I5",0]
[]
["Skupina J - kurt ",null,0,0,0,0,0,"Pořadí","Počet vítězství",null,"Pořadí zápasů",null,"Skupina J - kurt ","skóre",null,null,null,null,"skóre"]
["J1",0,null,0,0,0,0,null,null,null,"1.",0,0,null,null,"6.",0,0]
["J2",0,null,null,0,0,0,null,null,null,"2.",0,0,null,null,"7.",0,0]
["J3",0,null,null,null,0,0,null,null,null,"3.",0,0,null,null,"8.",0,0]
["J4",0,null,null,null,null,0,null,null,null,"4.",0,0,null,null,"9.",0,0]
["J5",0,null,null,null,null,null,null,null,null,"5.",0,0,null,null,"10.",0,0]